bitfinex-derivatives/quotes_BTCF0:USTF0_20250709
["timestamp","ask_amount","ask_price","bid_price","bid_amount"]
[1752079626998,0.27534483,109380.0,109370.0,2.2552075]
[1752079627602,0.27534483,109380.0,109370.0,1.6317275]
[1752079627901,0.90763143,109380.0,109370.0,0.5381309]
[1752079628203,0.99767143,109380.0,109370.0,0.5538809]
[1752079629800,0.99767143,109380.0,109370.0,1.2308242]
[1752079630000,0.68152813,109380.0,109370.0,1.2308242]
[1752079630708,0.65768813,109380.0,109370.0,1.2308242]
[1752079630907,0.65768813,109380.0,109370.0,1.2542342]
[1752079631307,0.34154483,109380.0,109370.0,1.2542342]
[1752079632710,0.34154483,109380.0,109370.0,1.2308242]
[1752079632908,0.34154483,109380.0,109370.0,1.23076559]
[1752079637110,0.34154483,109380.0,109370.0,1.25417559]
[1752079637412,0.34154483,109380.0,109370.0,0.9380909]
[1752079637612,0.34154483,109380.0,109370.0,1.25417559]
[1752079641015,0.34154483,109380.0,109370.0,0.9380909]
[1752079641217,0.34154483,109380.0,109370.0,1.25417559]
[1752079641416,0.34154483,109380.0,109370.0,1.25417623]
[1752079647823,0.30811597,109380.0,109370.0,1.21501623]
[1752079648922,0.30811597,109380.0,109370.0,0.85421623]
[1752079649124,0.30811597,109380.0,109370.0,1.21501623]
[1752079649724,0.30811597,109380.0,109370.0,1.24631623]
[1752079649934,0.32372597,109380.0,109370.0,1.26972623]
[1752079650110,0.32372597,109380.0,109370.0,1.25543409]
[1752079650316,0.32372597,109380.0,109370.0,1.26972623]
[1752079651318,0.32372597,109380.0,109370.0,1.25543409]
[1752079652425,0.32372597,109380.0,109370.0,1.28653409]
[1752079652827,0.63984049,109380.0,109370.0,1.28656392]
[1752079654421,0.62423049,109380.0,109370.0,1.28656392]
[1752079654628,0.57364049,109380.0,109370.0,1.28656392]
[1752079656928,0.65587187,109380.0,109370.0,1.28656392]
[1752079659132,0.65587187,109380.0,109370.0,0.9704494]
[1752079659333,0.65587187,109380.0,109370.0,1.30231392]
[1752079659529,0.97198639,109380.0,109370.0,0.3723]
[1752079659837,1.05919639,109380.0,109370.0,0.341]
[1752079660038,1.60024501,109380.0,109370.0,0.5403294]
[1752079660228,0.96801597,109380.0,109370.0,0.85644392]
[1752079660428,1.60024501,109380.0,109370.0,0.67360452]
[1752079660926,1.60024501,109380.0,109370.0,0.65711452]
[1752079661125,1.60024501,109380.0,109370.0,0.67360452]
[1752079661331,1.60024501,109380.0,109370.0,0.35749]
[1752079661531,1.60024501,109380.0,109370.0,0.5403293]
[1752079665640,1.60024501,109380.0,109370.0,0.85644382]
[1752079665836,0.96801597,109380.0,109370.0,0.85644382]
[1752079666137,1.26092049,109380.0,109370.0,0.85644382]
[1752079668540,1.57703501,109380.0,109370.0,0.85644382]
[1752079669542,1.60024501,109380.0,109370.0,0.85644382]
[1752079670343,1.60024501,109380.0,109370.0,0.85644392]
[1752079672943,1.57703501,109380.0,109370.0,0.85644392]
[1752079673839,1.26092049,109380.0,109370.0,0.88844392]
[1752079674037,0.92919597,109380.0,109370.0,0.87195392]
[1752079674239,0.32244597,109380.0,109370.0,1.24924392]
[1752079674441,0.88168597,109380.0,109370.0,1.28044392]
[1752079674741,0.68233337,109380.0,109370.0,1.59655844]
[1752079675636,0.86515597,109380.0,109370.0,1.59655844]
[1752079676146,0.86511597,109380.0,109370.0,1.67090162]
[1752079676338,0.86511597,109380.0,109370.0,1.68519345]
[1752079676832,0.86511597,109380.0,109370.0,1.36897842]
[1752079677038,0.68229337,109380.0,109370.0,1.36897842]
[1752079677642,0.68229337,109380.0,109370.0,1.37503842]
[1752079677850,0.86511597,109380.0,109370.0,1.37503842]
[1752079679043,0.83049189,109380.0,109370.0,1.05902441]
[1752079679249,0.83049189,109380.0,109370.0,1.37503842]
[1752079680651,0.64762929,109380.0,109370.0,1.35248842]
[1752079680843,0.05984276,109380.0,109370.0,1.69105243]
[1752079681042,0.02446929,109380.0,109370.0,2.12390843]
[1752079681241,0.02446929,109380.0,109370.0,1.98308748]
[1752079681445,0.02446929,109380.0,109370.0,1.87390843]
[1752079686750,0.02446929,109380.0,109370.0,2.12390843]
[1752079687146,0.02446929,109380.0,109370.0,1.87390843]
[1752079689148,0.02523731,109390.0,109380.0,0.83363541]
[1752079689337,0.06042115,109390.0,109380.0,2.22173724]
[1752079689539,0.06042115,109390.0,109380.0,2.24647724]
[1752079690754,0.06142115,109390.0,109380.0,2.24647724]
[1752079691140,0.06142115,109390.0,109380.0,2.24747724]
[1752079691344,0.24322705,109390.0,109380.0,2.24747724]
[1752079691953,0.06042115,109390.0,109380.0,2.24747724]
[1752079692152,0.02523731,109390.0,109380.0,2.24747724]
[1752079692750,0.25821384,109390.0,109380.0,2.05566435]
[1752079693052,0.62785226,109390.0,109380.0,1.57144956]
[1752079693252,0.66005226,109390.0,109380.0,1.57144956]
[1752079693647,0.34403825,109390.0,109380.0,1.75427226]
[1752079693847,0.34403825,109390.0,109380.0,2.43108627]
[1752079694053,0.25821825,109390.0,109380.0,2.76591693]
[1752079694356,0.04023731,109390.0,109380.0,2.83001693]
[1752079696342,0.20804331,109390.0,109380.0,2.83001693]
[1752079696549,0.20804331,109390.0,109380.0,2.85475693]
[1752079697154,0.20804331,109390.0,109380.0,2.53874292]
[1752079697950,0.02523731,109390.0,109380.0,2.85475693]
[1752079698252,0.20804331,109390.0,109380.0,2.85475693]
[1752079698647,0.20804331,109390.0,109380.0,2.85475708]
[1752079698852,0.02523731,109390.0,109380.0,2.85475708]
[1752079700354,0.20804331,109390.0,109380.0,2.85475708]
[1752079700654,0.20804331,109390.0,109380.0,2.53874307]
[1752079703758,0.20804321,109390.0,109380.0,2.53874307]
[1752079704360,0.20804321,109390.0,109380.0,2.53874305]
[1752079706660,0.20804321,109390.0,109380.0,2.85475706]
[1752079707460,0.20804321,109390.0,109380.0,2.84046737]
[1752079708160,0.02523731,109390.0,109380.0,2.84046737]
[1752079708356,0.06050389,109390.0,109380.0,2.84046737]
[1752079708550,0.24330989,109390.0,109380.0,2.84046737]
[1752079708750,0.20804331,109390.0,109380.0,2.84046737]
[1752079715366,0.06050072,109390.0,109380.0,2.84046737]
[1752079718960,0.24330672,109390.0,109380.0,2.84046737]
[1752079719160,0.02523731,109390.0,109380.0,2.84046737]
[1752079720266,0.20804331,109390.0,109380.0,2.84046737]
[1752079721768,0.02523731,109390.0,109380.0,2.84046737]
[1752079723272,0.06045949,109390.0,109380.0,2.84046737]
[1752079726071,0.02523731,109390.0,109380.0,2.84046737]
[1752079726668,0.06047038,109390.0,109380.0,2.84046737]
[1752079729776,0.06047038,109390.0,109380.0,2.20843935]
[1752079730079,0.02523731,109390.0,109380.0,2.84046737]
[1752079730377,0.06046608,109390.0,109380.0,2.84046737]
[1752079731778,0.02523731,109390.0,109380.0,2.84046737]
[1752079732073,0.20804331,109390.0,109380.0,2.84046737]
[1752079732277,0.02523731,109390.0,109380.0,2.84046737]
[1752079732873,0.06046726,109390.0,109380.0,2.84046737]
[1752079739088,0.02523731,109390.0,109380.0,2.94976956]
[1752079741182,0.02523731,109390.0,109380.0,2.94809956]
[1752079741689,0.02523731,109390.0,109380.0,2.83879737]
[1752079742390,0.02523731,109390.0,109380.0,2.94809956]
[1752079743480,0.02523731,109390.0,109380.0,2.83879737]
[1752079743887,0.02523731,109390.0,109380.0,2.97542511]
[1752079745389,0.02523731,109390.0,109380.0,2.83879737]
[1752079745990,0.02523731,109390.0,109380.0,2.97542511]
[1752079746992,0.02523731,109390.0,109380.0,2.83879737]
[1752079747993,0.02523731,109390.0,109380.0,3.19959737]
[1752079749293,0.02523731,109390.0,109380.0,3.30862052]
[1752079750997,0.02523731,109390.0,109380.0,3.62426892]
[1752079753098,3.25259918,109400.0,109390.0,0.182806]
[1752079753298,2.62335275,109400.0,109390.0,3.26918031]
[1752079753801,2.62335275,109400.0,109390.0,3.29681016]
[1752079754297,1.81930343,109400.0,109390.0,4.24448658]
[1752079754502,1.69390043,109400.0,109390.0,3.29781016]
[1752079754698,1.40232633,109400.0,109390.0,3.49491943]
[1752079754903,1.07084013,109400.0,109390.0,4.44259585]
[1752079755093,0.64576693,109400.0,109390.0,4.44259585]
[1752079755292,0.03128786,109410.0,109400.0,0.5435893]
[1752079755499,0.02882392,109430.0,109420.0,1.13043222]
[1752079755797,0.02882392,109430.0,109420.0,3.53668054]
[1752079756094,0.02882392,109430.0,109420.0,4.54875696]
[1752079756398,0.04115013,109440.0,109430.0,0.1827391]
[1752079756399,3e-08,109440.0,109430.0,0.1827391]
[1752079756590,3e-08,109440.0,109430.0,2.00473361]
[1752079756794,3e-08,109440.0,109430.0,1.39535107]
[1752079756989,3e-08,109440.0,109430.0,0.97110437]
[1752079757194,3e-08,109440.0,109430.0,1.60223213]
[1752079757398,3e-08,109440.0,109430.0,0.97110437]
[1752079757590,3e-08,109440.0,109430.0,1.60223213]
[1752079757796,0.00100003,109440.0,109430.0,1.60223213]
[1752079757996,0.00200003,109440.0,109430.0,1.78569401]
[1752079758204,0.00200003,109440.0,109430.0,1.67701119]
[1752079758498,0.00200003,109440.0,109430.0,1.85977118]
[1752079758692,0.00200003,109440.0,109430.0,1.968454]
[1752079758896,0.00200003,109440.0,109430.0,1.97766393]
[1752079760010,0.00200003,109440.0,109430.0,1.34653617]
[1752079760306,0.00200003,109440.0,109430.0,1.86898111]
[1752079760497,0.00200003,109440.0,109430.0,1.23785335]
[1752079760692,0.00100003,109440.0,109430.0,1.55541723]
[1752079760897,0.00100003,109440.0,109430.0,1.87098111]
[1752079761105,3e-08,109440.0,109430.0,1.87198111]
[1752079763011,3e-08,109440.0,109430.0,1.68922112]
[1752079767809,3e-08,109440.0,109430.0,1.67493585]
[1752079768010,3e-08,109440.0,109430.0,1.68895831]
[1752079779720,3e-08,109440.0,109430.0,1.68915043]
[1752079780122,3e-08,109440.0,109430.0,1.77055501]
[1752079783031,3e-08,109440.0,109430.0,1.68915043]
[1752079784236,3e-08,109440.0,109430.0,1.77055501]
[1752079790143,3e-08,109440.0,109430.0,3.03399501]
[1752079790634,0.03327425,109440.0,109430.0,3.03399501]
[1752079791743,0.03327654,109440.0,109430.0,3.01978043]
[1752079793142,3e-08,109440.0,109430.0,3.07439897]
[1752079794351,3e-08,109440.0,109430.0,2.44327121]
[1752079794543,3e-08,109440.0,109430.0,2.75883509]
[1752079794748,3e-08,109440.0,109430.0,3.07439897]
[1752079796550,3e-08,109440.0,109430.0,3.18326594]
[1752079796851,3e-08,109440.0,109430.0,3.04724282]
[1752079798755,3e-08,109440.0,109430.0,4.30080282]
[1752079800657,3e-08,109440.0,109430.0,4.19193585]
[1752079800861,3e-08,109440.0,109430.0,4.62255897]
[1752079801157,3e-08,109440.0,109430.0,4.93808178]
[1752079801658,3e-08,109440.0,109430.0,4.80205866]
[1752079802054,3e-08,109440.0,109430.0,4.93808178]
[1752079805553,3e-08,109440.0,109430.0,4.80205866]
[1752079805754,0.08947021,109450.0,109440.0,0.1827224]
[1752079806060,0.02797021,109450.0,109440.0,3.34559656]
[1752079807550,0.02531619,109460.0,109450.0,0.1827057]
[1752079807755,0.02531619,109460.0,109450.0,3.17696627]
[1752079807961,0.02531619,109460.0,109450.0,3.28573845]
[1752079810866,0.02531619,109460.0,109450.0,2.86116766]
[1752079811459,0.02531619,109460.0,109450.0,2.96993984]
[1752079811859,0.02531619,109460.0,109450.0,3.26453984]
[1752079812064,0.02531619,109460.0,109450.0,2.9763648]
[1752079812658,0.10171619,109460.0,109450.0,2.9763648]
[1752079812867,0.10171619,109460.0,109450.0,2.6817648]
[1752079813167,0.10171619,109460.0,109450.0,2.54674168]
[1752079813366,0.10171619,109460.0,109450.0,2.65538116]
[1752079813554,0.10171619,109460.0,109450.0,2.58373116]
[1752079813958,0.10171619,109460.0,109450.0,2.60813116]
[1752079814162,0.10171619,109460.0,109450.0,2.61013116]
[1752079815866,0.08641619,109460.0,109450.0,2.61013116]
[1752079816659,0.02531619,109460.0,109450.0,2.61013116]
[1752079816864,0.02531619,109460.0,109450.0,2.95765714]
[1752079817366,0.02531619,109460.0,109450.0,2.64223116]
[1752079822170,0.02531619,109460.0,109450.0,2.53359168]
[1752079823264,0.02531619,109460.0,109450.0,2.6696148]
[1752079823465,0.02531619,109460.0,109450.0,2.35418882]
[1752079823666,0.02531619,109460.0,109450.0,2.6696148]
[1752079824066,0.02531619,109460.0,109450.0,2.35418882]
[1752079824371,0.02531619,109460.0,109450.0,2.6696148]
[1752079824570,0.02531619,109460.0,109450.0,2.9642148]
[1752079827167,0.02531619,109460.0,109450.0,2.82819168]
[1752079829673,0.02531619,109460.0,109450.0,2.9642148]
[1752079831079,0.02531619,109460.0,109450.0,2.93691491]
[1752079832772,0.02531619,109460.0,109450.0,3.25244373]
[1752079833171,0.02531619,109460.0,109450.0,3.27974362]
[1752079836480,0.02531619,109460.0,109450.0,3.59522102]
[1752079837283,0.02531619,109460.0,109450.0,3.30062102]
[1752079838080,0.02531619,109460.0,109450.0,3.27343893]
[1752079840784,0.02531619,109460.0,109450.0,3.30052102]
[1752079842975,0.02531619,109460.0,109450.0,3.1644979]
[1752079844887,0.02531619,109460.0,109450.0,3.30063159]
[1752079846784,0.03880001,109470.0,109460.0,0.182689]
[1752079846990,0.03880001,109470.0,109460.0,3.60972406]
[1752079847788,0.03880001,109470.0,109460.0,3.31512406]
[1752079848891,0.03880001,109470.0,109460.0,2.9994634]
[1752079849190,0.03880001,109470.0,109460.0,3.0014634]
[1752079849892,0.03880001,109470.0,109460.0,2.89257798]
[1752079850294,0.03880001,109470.0,109460.0,3.00143516]
[1752079850485,0.03880001,109470.0,109460.0,2.89257798]
[1752079851591,0.03880001,109470.0,109460.0,3.02871167]
[1752079853090,0.03880001,109470.0,109460.0,3.00143619]
[1752079854599,0.03880001,109470.0,109460.0,2.89257798]
[1752079856701,0.03880001,109470.0,109460.0,3.00143619]
[1752079857001,0.03880001,109470.0,109460.0,3.29603619]
[1752079857398,0.03880001,109470.0,109460.0,3.18717798]
[1752079857895,0.03880001,109470.0,109460.0,3.29603619]
[1752079859005,0.03880001,109470.0,109460.0,3.18717798]
[1752079859203,0.03880001,109470.0,109460.0,3.32331167]
[1752079859698,0.03880001,109470.0,109460.0,3.18717798]
[1752079860494,0.03880001,109470.0,109460.0,3.29603757]
[1752079860805,0.03880001,109470.0,109460.0,3.14679798]
[1752079860995,0.03880001,109470.0,109460.0,3.17109798]
[1752079862409,0.03880001,109470.0,109460.0,3.18537511]
[1752079863005,0.03880001,109470.0,109460.0,3.29423793]
[1752079864210,0.03880001,109470.0,109460.0,3.18537511]
[1752079867411,0.03880001,109470.0,109460.0,3.3215088]
[1752079868812,0.03880001,109470.0,109460.0,3.63685755]
[1752079869198,0.04000343,109500.0,109460.0,4.85700574]
[1752079869403,0.07326789,109500.0,109490.0,1.61662257]
[1752079869604,0.15156789,109500.0,109490.0,3.24098952]
[1752079869805,0.15156789,109500.0,109490.0,3.26436952]
[1752079870912,0.15156789,109500.0,109490.0,2.94890999]
[1752079871612,0.15356789,109500.0,109490.0,3.02252677]
[1752079872414,0.15656789,109500.0,109490.0,3.02252677]
[1752079872616,0.15656789,109500.0,109490.0,3.03176006]
[1752079873115,0.15656789,109500.0,109490.0,2.95012335]
[1752079874307,0.15656789,109500.0,109490.0,2.98332335]
[1752079874511,0.15656789,109500.0,109490.0,3.01392335]
[1752079880234,0.12330343,109500.0,109490.0,3.01392335]
[1752079880427,0.04500343,109500.0,109490.0,3.01392335]
[1752079882821,0.06070343,109500.0,109490.0,2.98332335]
[1752079883022,0.12340343,109500.0,109490.0,2.98332335]
[1752079883225,0.12340343,109500.0,109490.0,3.06496006]
[1752079884023,0.30602573,109500.0,109490.0,3.06496006]
[1752079884227,0.30602573,109500.0,109490.0,3.04158006]
[1752079884632,0.30602573,109500.0,109490.0,3.06496006]
[1752079884933,0.12340343,109500.0,109490.0,3.06496006]
[1752079887533,0.30602573,109500.0,109490.0,3.06496006]
[1752079889134,0.12340343,109500.0,109490.0,3.06496006]
[1752079889335,0.04500343,109500.0,109490.0,2.98332335]
[1752079889530,0.04500343,109500.0,109490.0,3.01522335]
[1752079890237,0.04500343,109500.0,109490.0,3.01522247]
[1752079891228,0.04500343,109500.0,109490.0,3.41214651]
[1752079891837,0.04500343,109500.0,109490.0,3.09685918]
[1752079892942,0.04500343,109500.0,109490.0,3.41212115]
[1752079895242,0.04500343,109500.0,109490.0,2.78157185]
[1752079895435,0.04500343,109500.0,109490.0,3.41212115]
[1752079895739,0.24332573,109500.0,109490.0,3.41212115]
[1752079896239,0.06070343,109500.0,109490.0,3.41212148]
[1752079896638,0.06070343,109500.0,109490.0,3.39784669]
[1752079897439,0.04500343,109500.0,109490.0,3.39784669]
[1752079902343,0.04500343,109500.0,109490.0,3.31620998]
[1752079902743,0.04500343,109500.0,109490.0,3.33046858]
[1752079903141,0.04500343,109500.0,109490.0,3.43931753]
[1752079905143,0.04500343,109500.0,109490.0,3.43932014]
[1752079911749,0.04500343,109500.0,109490.0,3.33047119]
[1752079912457,0.04500343,109500.0,109490.0,3.75459479]
[1752079913154,0.07789607,109500.0,109490.0,3.72732159]
[1752079913546,0.07689607,109500.0,109490.0,3.72732159]
[1752079913949,0.07489607,109500.0,109490.0,3.72732159]
[1752079916151,0.07489607,109500.0,109490.0,4.02192159]
[1752079917754,0.07489607,109500.0,109490.0,3.70664694]
[1752079917956,0.07489607,109500.0,109490.0,4.02192159]
[1752079918253,0.04200343,109500.0,109490.0,4.02192159]
[1752079918460,0.07487644,109500.0,109490.0,4.02192159]
[1752079920148,0.07487644,109500.0,109490.0,3.72732159]
[1752079920752,0.66512573,109540.0,109530.0,0.1825723]
[1752079920753,0.13684572,109540.0,109530.0,0.1825723]
[1752079920947,0.11419572,109540.0,109530.0,2.76562281]
[1752079921150,0.20228873,109540.0,109530.0,2.76562281]
[1752079921347,0.01969673,109540.0,109530.0,2.76562281]
[1752079921855,0.02469673,109540.0,109530.0,2.82892281]
[1752079922055,0.03069673,109540.0,109530.0,2.82892281]
[1752079922553,0.02569673,109540.0,109530.0,2.82892281]
[1752079922747,0.03069673,109540.0,109530.0,2.82892281]
[1752079922949,0.03069673,109540.0,109530.0,2.82848127]
[1752079924544,0.02469673,109540.0,109530.0,2.85265127]
[1752079924857,0.02869673,109540.0,109530.0,2.85265127]
[1752079926853,0.02369673,109540.0,109530.0,2.85265127]
[1752079927054,0.02669673,109540.0,109530.0,2.85265127]
[1752079929051,0.01150673,109540.0,109530.0,2.85265127]
[1752079929346,0.01150673,109540.0,109530.0,2.83839006]
[1752079930762,0.21047233,109540.0,109530.0,2.48997644]
[1752079930962,0.27207233,109540.0,109530.0,2.46010618]
[1752079932764,0.27107233,109540.0,109530.0,2.46010618]
[1752079933266,0.26907233,109540.0,109530.0,2.46010618]
[1752079935864,0.08201,109540.0,109530.0,2.86211032]
[1752079936065,0.08201,109540.0,109530.0,2.89491032]
[1752079936963,0.02041,109540.0,109530.0,2.89491032]
[1752079937360,0.2029656,109540.0,109530.0,2.89491032]
[1752079937662,0.2350656,109540.0,109530.0,2.89491032]
[1752079937968,0.2350656,109540.0,109530.0,2.26480256]
[1752079938164,0.2350656,109540.0,109530.0,2.23200256]
[1752079938360,0.2350656,109540.0,109530.0,2.1450523]
[1752079938567,0.2657656,109540.0,109530.0,2.46010618]
[1752079940970,0.2657656,109540.0,109530.0,2.1450523]
[1752079941272,0.2657656,109540.0,109530.0,2.46003355]
[1752079941967,0.98216428,109540.0,109530.0,0.33]
[1752079942271,1.16475628,109540.0,109530.0,0.5125723]
[1752079942572,0.80395628,109540.0,109530.0,0.5125723]
[1752079942770,1.16475628,109540.0,109530.0,0.5125723]
[1752079942969,0.8497024,109540.0,109530.0,0.5125723]
[1752079943163,0.4889024,109540.0,109530.0,0.5125723]
[1752079943672,0.4889024,109540.0,109530.0,0.33]
[1752079943865,0.4889024,109540.0,109530.0,0.5125723]
[1752079944265,1.16475628,109540.0,109530.0,0.5125723]
[1752079945465,1.12481628,109540.0,109530.0,0.5125723]
[1752079945770,2.02958628,109540.0,109530.0,0.33]
[1752079945970,1.39834628,109540.0,109530.0,0.5125723]
[1752079946167,1.4644924,109540.0,109530.0,0.5125723]
[1752079946373,0.2899004,109540.0,109530.0,0.84374618]
[1752079946677,0.3063104,109540.0,109530.0,0.84374618]
[1752079947065,0.2827804,109540.0,109530.0,0.84374618]
[1752079947976,0.2827804,109540.0,109530.0,0.98427644]
[1752079948472,0.2827804,109540.0,109530.0,0.95979644]
[1752079950375,0.2827804,109540.0,109530.0,0.64474256]
[1752079950774,0.2827804,109540.0,109530.0,0.46217026]
[1752079950974,0.3063104,109540.0,109530.0,0.46217026]
[1752079951467,0.3063104,109540.0,109530.0,0.40782]
[1752079951772,0.3063104,109540.0,109530.0,0.5903923]
[1752079952175,0.3063104,109540.0,109530.0,0.40782]
[1752079952474,0.3063104,109540.0,109530.0,0.5903923]
[1752079952673,0.3063104,109540.0,109530.0,0.60466409]
[1752079953677,0.3063104,109540.0,109530.0,0.42209179]
[1752079953876,0.3063104,109540.0,109530.0,0.60466409]
[1752079955879,0.2827804,109540.0,109530.0,0.60466409]
[1752079957082,0.2199804,109540.0,109530.0,0.60466409]
[1752079957282,0.2199804,109540.0,109530.0,0.91971797]
[1752079958379,0.2199804,109540.0,109530.0,0.60466409]
[1752079958981,0.2035704,109540.0,109530.0,0.58854409]
[1752079959283,0.2196804,109540.0,109530.0,0.60520409]
[1752079959484,0.2196804,109540.0,109530.0,0.5909323]
[1752079962282,0.2196804,109540.0,109530.0,0.40836]
[1752079962675,0.53473428,109540.0,109530.0,0.3917]
[1752079962881,0.89553428,109540.0,109530.0,0.3917]
[1752079963178,1.14012628,109540.0,109530.0,0.3607]
[1752079963382,1.14012628,109540.0,109530.0,0.37736]
[1752079963780,1.03945856,109540.0,109530.0,0.37736]
[1752079963981,0.95753428,109540.0,109530.0,0.37736]
[1752079964182,0.98050428,109540.0,109530.0,0.37736]
[1752079968682,0.98050428,109540.0,109530.0,0.40956]
[1752079969385,1.06242856,109540.0,109530.0,0.40956]
[1752079969581,0.98050428,109540.0,109530.0,0.40956]
[1752079970087,1.06242856,109540.0,109530.0,0.40956]
[1752079972389,1.24502056,109540.0,109530.0,0.37736]
[1752079972591,1.24502056,109540.0,109530.0,0.39163227]
[1752079972782,1.06242856,109540.0,109530.0,0.39163227]
[1752079973187,0.98050428,109540.0,109530.0,0.39163227]
[1752079973686,0.98050428,109540.0,109530.0,0.37736]
[1752079975786,0.98050428,109540.0,109520.0,0.75758545]
[1752079975787,0.1825723,109530.0,109520.0,0.0869872]
[1752079975992,1.84236006,109530.0,109520.0,0.01]
[1752079976188,0.182589,109520.0,109510.0,0.2005557]
[1752079976492,0.55434735,109520.0,109510.0,0.2005557]
[1752079976691,0.91514735,109520.0,109510.0,0.5305557]
[1752079976884,0.91514735,109520.0,109510.0,0.3272157]
[1752079977194,0.91514735,109520.0,109510.0,0.3005557]
[1752079977397,0.91514735,109520.0,109510.0,0.3172157]
[1752079978196,0.60009347,109520.0,109510.0,0.23563995]
[1752079978397,0.91514735,109520.0,109510.0,0.2182157]
[1752079978696,0.91514735,109520.0,109510.0,0.3182157]
[1752079978896,0.91514735,109520.0,109510.0,0.23663995]
[1752079979194,0.94594735,109520.0,109510.0,0.23663995]
[1752079980194,0.94594735,109520.0,109510.0,0.49663995]
[1752079980493,0.95527539,109520.0,109510.0,0.49663995]
[1752079981292,1.13789939,109520.0,109510.0,0.47997995]
[1752079981589,1.13789939,109520.0,109510.0,0.41537995]
[1752079981982,1.79945939,109520.0,109510.0,0.41537995]
[1752079982185,1.79945939,109520.0,109510.0,0.361]
[1752079983792,1.61683539,109520.0,109510.0,0.361]
[1752079983996,1.61723539,109520.0,109510.0,0.361]
[1752079984586,1.79985939,109520.0,109510.0,0.361]
[1752079984791,1.57815539,109520.0,109510.0,0.361]
[1752079985094,1.60112539,109520.0,109510.0,0.361]
[1752079985298,1.23001939,109520.0,109510.0,0.361]
[1752079985490,1.88378939,109520.0,109510.0,0.361]
[1752079986598,1.88578939,109520.0,109510.0,0.36]
[1752079987088,1.88778939,109520.0,109510.0,0.36]
[1752079988398,1.47245551,109520.0,109510.0,0.37605]
[1752079988594,0.77993551,109520.0,109510.0,0.6227556]
[1752079988796,0.22016347,109520.0,109510.0,0.96089948]
[1752079989001,0.85116347,109520.0,109510.0,0.96089948]
[1752079989299,0.85120347,109520.0,109510.0,1.32169948]
[1752079989493,0.22016347,109520.0,109510.0,1.32169948]
[1752079989691,0.85120347,109520.0,109510.0,1.32169948]
[1752079990090,0.21816347,109520.0,109510.0,1.32169948]
[1752079990293,0.84916347,109520.0,109510.0,1.32169948]
[1752079992292,0.21816347,109520.0,109510.0,1.32169948]
[1752079992493,0.84908347,109520.0,109510.0,1.32169948]
[1752079993998,0.21816347,109520.0,109510.0,1.32169948]
[1752079994198,0.84888347,109520.0,109510.0,1.32169948]
[1752079994503,0.84888347,109520.0,109510.0,0.77829388]
[1752079994696,0.84888347,109520.0,109510.0,0.96089948]
[1752079995101,0.84888347,109520.0,109510.0,0.6458456]
[1752079995296,0.84888347,109520.0,109510.0,0.96089948]
[1752079996102,0.84888347,109520.0,109510.0,0.6458456]
[1752079996701,0.84888347,109520.0,109510.0,0.46324]
[1752079996902,0.84888347,109520.0,109510.0,0.6458456]
[1752079999011,1.18745735,109520.0,109510.0,0.44015]
[1752079999201,1.53230735,109520.0,109510.0,0.44015]
[1752080000602,1.53230735,109520.0,109510.0,0.3916]
[1752080000802,1.59570735,109520.0,109510.0,0.3916]
[1752080002802,0.58653347,109520.0,109510.0,0.3916]
[1752080003008,0.87200347,109520.0,109510.0,0.44015]
[1752080003307,0.84848347,109520.0,109510.0,0.93780948]
[1752080003707,0.88121765,109520.0,109510.0,0.93780948]
[1752080004207,0.88121765,109520.0,109510.0,0.6227556]
[1752080004910,1.24201765,109520.0,109510.0,0.6227556]
[1752080005612,1.58059153,109520.0,109510.0,0.44015]
[1752080005809,1.58059153,109520.0,109510.0,0.6227556]
[1752080006312,1.58059153,109520.0,109510.0,0.44015]
[1752080006512,1.55707153,109520.0,109510.0,0.6227556]
[1752080007012,1.55707153,109520.0,109510.0,0.44015]
[1752080007211,1.59023153,109520.0,109510.0,0.44015]
[1752080012519,1.59023153,109520.0,109510.0,0.4241]
[1752080013120,1.67215581,109520.0,109510.0,0.4241]
[1752080013919,1.67215581,109520.0,109510.0,0.44015]
[1752080015521,1.67215581,109520.0,109510.0,0.4241]
[1752080015722,1.70295581,109520.0,109510.0,0.4241]
[1752080015923,1.73525581,109520.0,109510.0,0.4241]
[1752080016217,1.42020193,109520.0,109510.0,0.44015]
[1752080016418,1.42020193,109520.0,109510.0,0.6227557]
[1752080016419,1.38940193,109520.0,109510.0,0.6227557]
[1752080016723,1.35710193,109520.0,109510.0,0.6227557]
[1752080017119,1.32436775,109520.0,109510.0,0.6227557]
[1752080017515,1.30084775,109520.0,109510.0,0.6227557]
[1752080018324,0.30008775,109520.0,109510.0,1.32313958]
[1752080018524,0.93840775,109520.0,109510.0,1.32313958]
[1752080018825,0.85648347,109520.0,109510.0,1.32313958]
[1752080019425,0.85548347,109520.0,109510.0,1.32313958]
[1752080020829,0.85448347,109520.0,109510.0,1.33823687]
[1752080023121,0.85448347,109520.0,109510.0,1.39267618]
[1752080023822,0.85448347,109520.0,109510.0,1.0776223]
[1752080024021,0.85448347,109520.0,109510.0,1.39267618]
[1752080025330,0.85448347,109520.0,109510.0,1.0776223]
[1752080025531,0.85448347,109520.0,109510.0,1.39267618]
[1752080028234,0.85448347,109520.0,109510.0,1.0776223]
[1752080031436,0.85256347,109520.0,109510.0,1.39267618]
[1752080032436,0.85256347,109520.0,109510.0,1.39261678]
[1752080032731,0.85256347,109520.0,109510.0,1.47419253]
[1752080034338,0.85256347,109520.0,109510.0,1.15913865]
[1752080034535,0.85256347,109520.0,109510.0,1.47419253]
[1752080035236,0.85256347,109520.0,109510.0,1.15913865]
[1752080035436,0.85256347,109520.0,109510.0,1.47419253]
[1752080037837,0.85256347,109520.0,109510.0,1.39261678]
[1752080038038,0.85256347,109520.0,109510.0,1.0775629]
[1752080038238,0.85256347,109520.0,109510.0,1.39261308]
[1752080039240,0.85256347,109520.0,109510.0,1.0775592]
[1752080039440,0.85256347,109520.0,109510.0,1.39261308]
[1752080039639,0.21616347,109520.0,109510.0,1.39261308]
[1752080039840,0.85176347,109520.0,109510.0,1.39261308]
[1752080040739,0.85176347,109520.0,109510.0,1.37857889]
[1752080040939,0.85176347,109520.0,109510.0,1.39261191]
[1752080041339,0.85176347,109520.0,109510.0,1.47418766]
[1752080041542,0.85176347,109520.0,109510.0,1.4741879]
[1752080042643,1.16681735,109520.0,109510.0,0.79833402]
[1752080042837,1.52761735,109520.0,109510.0,0.67617817]
[1752080043042,1.61427735,109520.0,109510.0,0.67791491]
[1752080043236,1.25347735,109520.0,109510.0,0.66214491]
[1752080043438,1.22861735,109520.0,109510.0,0.67791491]
[1752080043631,1.26131947,109520.0,109510.0,0.6234756]
[1752080044042,1.26231947,109520.0,109510.0,0.6077056]
[1752080044231,1.26231947,109520.0,109510.0,0.4251]
[1752080044542,1.26331947,109520.0,109510.0,0.43987]
[1752080046246,1.28817947,109520.0,109510.0,0.40737]
[1752080047241,1.28817947,109520.0,109510.0,0.48894575]
[1752080049946,1.28817947,109520.0,109510.0,0.36]
[1752080051043,1.28817947,109520.0,109510.0,0.37652]
[1752080051242,1.28817947,109520.0,109510.0,0.36]
[1752080051748,1.28817947,109520.0,109510.0,0.37652]